bitfinex/quotes_ETHUSD_20250129
["timestamp","ask_amount","ask_price","bid_price","bid_amount"]
[1738157250915,3.23268,3093.4,3093.3,0.03569089]
[1738157251114,3.23268,3093.4,3092.2,3.23392]
[1738157251318,3.23323,3092.9,3092.3,3.84484008]
[1738157251518,0.63727931,3093.5,3092.8,0.0075]
[1738157251717,2.81821816,3093.9,3093.0,0.0075]
[1738157251904,3.232,3094.1,3093.6,0.8251]
[1738157252104,0.02401924,3094.1,3093.1,3.26757528]
[1738157252308,3.23237,3093.7,3093.1,3.64216753]
[1738157252825,3.2322,3093.9,3093.1,3.64216753]
[1738157253013,3.25628924,3093.8,3093.2,3.23283]
[1738157254834,0.7931,3093.7,3093.0,0.8251]
[1738157255143,0.7931,3093.7,3092.4,2.0]
[1738157255144,3.23332,3092.8,3092.4,0.788]
[1738157255443,3.23332,3092.8,3092.1,3.23396]
[1738157255444,0.02401924,3092.7,3092.1,0.788]
[1738157255645,3.23365,3092.5,3092.1,1.513637]
[1738157256193,3.23312,3093.0,3092.3,3.23379]
[1738157256394,3.8772541,3093.4,3092.8,3.2333]
[1738157256639,3.23283,3093.3,3092.8,3.2333]
[1738157256942,3.23283,3093.3,3092.9,0.03491132]
[1738157257936,3.23266,3093.5,3092.9,3.26810132]
[1738157258093,4.06371,3093.7,3093.1,0.7534]
[1738157258300,3.23249,3093.6,3093.1,0.78572665]
[1738157258530,3.23249,3093.6,3093.2,0.0337724]
[1738157258714,3.23259,3093.5,3093.2,0.0337724]
[1738157258908,3.23278,3093.4,3093.2,0.0337724]
[1738157259128,3.18278,3093.4,3093.2,0.0337724]
[1738157259330,3.20679924,3093.4,3092.8,0.7534]
[1738157259497,3.25669924,3093.4,3093.3,0.03364175]
[1738157259834,3.25669924,3093.4,3092.3,3.23377]
[1738157259835,3.23323,3092.9,3092.3,3.23377]
[1738157260032,0.7613,3093.3,3092.2,0.793]
[1738157260033,3.23343,3092.7,3092.4,0.03409003]
[1738157260239,3.23343,3092.7,3092.2,0.793]
[1738157260397,3.23343,3092.7,3092.3,0.03413986]
[1738157260598,3.23343,3092.7,3092.2,0.793]
[1738157260799,3.23343,3092.7,3092.3,0.03413986]
[1738157260999,3.23343,3092.7,3092.2,4.5029327]
[1738157261539,3.23343,3092.7,3092.3,0.03413986]
[1738157262047,3.23343,3092.7,3092.4,0.03409003]
[1738157262238,3.23343,3092.7,3092.2,4.5029327]
[1738157262540,3.23343,3092.7,3092.3,0.03413986]
[1738157262902,3.23343,3092.7,3092.2,4.5029327]
[1738157263109,3.23343,3092.7,3092.4,0.03409003]
[1738157263310,3.23343,3092.7,3092.3,0.03413986]
[1738157263505,3.23343,3092.7,3092.5,0.03404021]
[1738157263826,3.23343,3092.7,3092.6,0.03399039]
[1738157264034,3.23343,3092.7,3092.2,1.2690127]
[1738157264233,3.23343,3092.7,3092.3,0.03413986]
[1738157264448,3.23331,3092.8,3092.3,3.7198522]
[1738157264645,3.23331,3092.8,3092.4,0.03409003]
[1738157264948,3.23304,3093.1,3092.5,3.23354]
[1738157265151,3.23304,3093.1,3092.6,3.23352]
[1738157265350,3.23304,3093.1,3092.6,3.26776308]
[1738157265563,3.23294,3093.2,3092.6,0.03424308]
[1738157265873,3.23311,3093.0,3092.5,3.23362]
[1738157266045,3.23311,3093.0,3092.6,0.03424308]
[1738157266358,0.02401924,3092.9,3092.6,0.03424308]
[1738157266513,3.23338,3092.8,3092.6,0.03424308]
[1738157266712,3.23338,3092.8,3092.3,3.23376]
[1738157266911,3.23338,3092.8,3092.7,0.03422864]
[1738157267114,3.23345,3092.7,3092.2,4.02694]
[1738157267430,3.23345,3092.7,3092.2,4.78611764]
[1738157267741,3.23345,3092.7,3092.2,4.753783]
[1738157268369,0.7613,3093.3,3092.2,1.519843]
[1738157268525,3.23308,3093.1,3092.5,3.23357]
[1738157268853,3.23308,3093.1,3092.6,0.03233264]
[1738157269057,3.23308,3093.1,3092.5,3.26589142]
[1738157269304,3.23308,3093.1,3092.6,3.23351]
[1738157269561,3.23284,3093.3,3092.7,0.7682]
[1738157269735,3.23284,3093.3,3092.8,3.2333]
[1738157270057,3.23291,3093.2,3092.7,4.40499914]
[1738157270823,5.22010816,3093.5,3092.8,0.03233141]
[1738157271024,3.23275,3093.4,3092.9,0.03417956]
[1738157271927,3.23292,3093.2,3092.9,0.03417956]
[1738157272127,3.2328,3093.3,3092.9,0.03417956]
[1738157272350,3.2328,3093.3,3092.8,3.23331]
[1738157272661,3.2328,3093.3,3092.9,0.03417956]
[1738157273168,3.23262,3093.5,3093.0,3.23306]
[1738157273375,6.46529,3093.5,3093.0,3.23306]
[1738157273586,3.23262,3093.5,3093.1,0.03407995]
[1738157273784,3.23274,3093.4,3093.1,0.03407995]
[1738157273954,3.23274,3093.4,3092.8,3.26563831]
[1738157273955,0.8164,3093.6,3092.8,0.03232831]
[1738157274282,3.23255,3093.6,3092.8,0.03232831]
[1738157274489,3.23255,3093.6,3093.0,3.2331]
[1738157274634,3.2326,3093.5,3093.1,0.03386264]
[1738157275276,1.98751816,3093.8,3093.1,0.03386264]
[1738157275440,3.23275,3093.4,3092.8,3.23323]
[1738157275647,3.23275,3093.4,3092.9,0.400143]
[1738157275852,3.23275,3093.4,3092.9,0.43404461]
[1738157276085,8.45262816,3093.6,3092.9,0.43404461]
[1738157276388,8.45262816,3093.6,3093.0,3.2331]
[1738157276389,3.23267,3093.5,3093.0,3.2331]
[1738157276682,5.22006816,3093.6,3092.9,0.43404461]
[1738157276683,1.98751816,3093.6,3093.2,3.23284]
[1738157276897,1.98751816,3093.6,3093.4,3.23262]
[1738157277045,1.98751816,3093.6,3093.5,3.26582404]
[1738157277870,1.98751816,3093.6,3093.5,0.03324404]
[1738157278150,1.98751816,3093.6,3093.3,4.34165673]
[1738157278461,3.23235,3093.8,3093.4,0.03312712]
[1738157278896,3.23258,3093.5,3093.4,0.03312712]
[1738157279058,3.23298,3093.2,3092.7,0.7928]
[1738157279464,3.23298,3093.2,3092.8,0.03344108]
[1738157279661,3.23298,3093.2,3092.7,0.7928]
[1738157279988,0.7674,3093.3,3092.8,0.03344108]
[1738157279989,3.23321,3092.9,3092.8,0.03344108]
[1738157280187,3.25722924,3092.9,3092.8,0.03344108]
[1738157280390,3.23374,3092.4,3092.1,0.8305]
[1738157280696,3.23436,3091.8,3091.5,0.8305]
[1738157280914,3.23436,3091.8,3091.2,3.23492]
[1738157281190,3.23436,3091.8,3091.2,4.05032]
[1738157281348,3.23448,3091.7,3091.2,4.05032]
[1738157281554,3.23448,3091.7,3091.4,0.661132]
[1738157282085,3.23458,3091.6,3091.2,0.8154]
[1738157282461,3.25836924,3091.9,3091.2,0.8154]
[1738157282462,3.23442,3091.8,3091.2,0.8154]
[1738157282667,3.23435,3091.9,3091.2,0.8154]
[1738157283166,3.23452,3091.7,3091.2,0.8154]
[1738157283360,3.23452,3091.7,3091.3,3.222147]
[1738157284189,6.46907,3091.7,3091.3,3.222147]
[1738157284359,3.23452,3091.7,3091.3,3.222147]
[1738157284760,3.23452,3091.7,3091.3,2.561]
[1738157284973,3.23463,3091.6,3091.2,0.8154]
[1738157285270,0.02401924,3091.6,3090.9,3.23527]
[1738157285483,3.23458,3091.6,3091.1,3.23508]
[1738157286093,3.23458,3091.6,3091.2,0.03489978]
[1738157286297,0.02401924,3091.7,3091.2,0.03489978]
[1738157286456,3.23458,3091.6,3091.2,0.03489978]
[1738157286999,3.23446,3091.7,3091.2,0.03489978]
[1738157287295,3.23446,3091.7,3091.2,3.67664642]
[1738157287500,3.23446,3091.7,3091.2,0.44166642]
[1738157287795,3.23446,3091.7,3091.2,0.03489978]
[1738157288347,3.23446,3091.7,3091.2,3.26987978]
[1738157288488,3.23446,3091.7,3091.2,0.03489978]
[1738157289005,1.98751816,3091.9,3091.4,3.23471]
[1738157289210,1.98751816,3091.9,3091.8,3.23436]
[1738157289389,1.98751816,3091.9,3091.8,3.24186]
[1738157289593,1.98751816,3091.9,3091.8,3.27501501]
[1738157291313,1.98751816,3091.9,3091.8,3.26751501]
[1738157292515,1.98751816,3091.9,3091.8,0.03315501]
[1738157292720,3.234,3092.2,3091.8,0.03315501]
[1738157292919,3.234,3092.2,3091.7,4.06116]
[1738157293147,3.234,3092.2,3091.9,0.03310516]
[1738157293305,3.234,3092.2,3091.8,0.03315501]
[1738157293502,3.23407,3092.1,3091.8,0.03315501]
[1738157293748,3.234,3092.2,3091.7,1.55949607]
[1738157294046,3.234,3092.2,3091.8,0.03315501]
[1738157294348,3.234,3092.2,3091.8,0.80938918]
[1738157294570,3.23439,3091.8,3091.4,0.806]
[1738157294946,3.23425,3091.9,3091.4,0.806]
[1738157295159,3.23407,3092.1,3091.4,0.806]
[1738157295334,3.23416,3092.0,3091.5,3.23467]
[1738157295681,3.23416,3092.0,3091.4,0.806]
[1738157295682,3.2343,3091.9,3091.4,0.806]
[1738157297373,3.23409,3092.1,3091.4,1.2133155]
[1738157297547,3.23409,3092.1,3091.5,3.26700303]
[1738157297751,3.23409,3092.1,3091.5,3.23466]
[1738157298261,6.46822,3092.1,3091.5,3.23466]
[1738157298444,3.23409,3092.1,3091.5,3.23466]
[1738157298643,1.98751816,3092.2,3091.8,3.23431]
[1738157298864,1.98751816,3092.2,3091.8,3.557741]
[1738157299475,1.98751816,3092.2,3091.8,3.557791]
[1738157299676,1.98751816,3092.4,3092.1,4.06368]
[1738157300005,1.98751816,3092.4,3092.1,7.29764]
[1738157300207,1.98751816,3092.4,3092.2,3.963594]
[1738157300419,1.98751816,3092.4,3092.3,3.23383]
[1738157300733,1.98751816,3092.4,3092.3,3.24133]
[1738157300882,1.98751816,3092.4,3092.3,3.27366468]
[1738157301213,1.98751816,3092.4,3092.3,3.27372071]
[1738157301398,1.98751816,3092.4,3092.3,4.08042218]
[1738157301607,1.98751816,3092.4,3092.3,4.11275726]
[1738157301772,1.98751816,3092.4,3092.3,4.08042218]
[1738157302796,1.98751816,3093.1,3092.3,0.84659218]
[1738157303110,1.98751816,3093.1,3092.8,3.23325]
[1738157303611,1.98751816,3093.1,3092.9,0.03184445]
[1738157304108,1.98751816,3093.1,3092.8,0.7654]
[1738157304316,1.98751816,3093.1,3092.9,0.03173342]
[1738157304975,1.98751816,3093.3,3092.9,0.03173342]
[1738157305575,1.98751816,3093.3,3093.0,3.63606734]
[1738157305913,1.98751816,3093.3,3093.2,3.23289]
[1738157306206,1.98751816,3093.3,3093.2,3.26444373]
[1738157306405,1.98751816,3093.3,3093.2,3.27194373]
[1738157306569,1.98751816,3093.3,3093.2,0.03905373]
[1738157306772,1.98751816,3093.3,3093.2,0.03155373]
[1738157307173,1.98751816,3093.3,3093.0,0.40303734]
[1738157307174,1.98751816,3093.3,3093.1,3.24049]
[1738157307370,1.98751816,3093.3,3093.2,3.63624096]
[1738157308373,1.98751816,3093.7,3093.3,4.02498]
[1738157308579,1.98751816,3093.7,3093.3,4.02491]
[1738157308899,1.98751816,3093.7,3093.6,3.23997]
[1738157309101,1.98751816,3093.7,3093.6,3.27111265]
[1738157310199,1.98751816,3093.7,3093.6,0.68900392]
[1738157310579,1.98751816,3093.7,3093.6,3.92147392]
[1738157311477,1.98751816,3093.7,3093.6,0.68900392]
[1738157311677,3.23196,3094.1,3093.6,0.68900392]
[1738157314140,3.23196,3094.1,3093.6,3.92145392]
[1738157314417,3.23196,3094.1,3093.7,0.71862549]
[1738157314580,3.23196,3094.1,3093.6,0.03864265]
[1738157314784,3.23196,3094.1,3093.8,0.0299985]
[1738157314986,3.23196,3094.1,3093.7,0.03004828]
[1738157315300,3.2319,3094.2,3093.8,0.0299985]
[1738157315489,3.2319,3094.2,3093.7,3.23236]
[1738157315692,3.2319,3094.2,3093.8,0.0299632]
[1738157316016,3.2319,3094.2,3093.7,3.879514]
[1738157316181,3.2319,3094.2,3093.9,0.02991342]
[1738157316382,5.21916816,3094.4,3093.9,6.46415]
[1738157316585,5.21916816,3094.4,3094.0,0.02986364]
[1738157317008,1.98751816,3094.4,3094.0,0.02986364]
[1738157317400,1.98751816,3094.4,3094.0,0.43636789]
[1738157317631,1.98751816,3094.4,3094.1,3.23195]
[1738157317836,1.98751816,3094.6,3094.1,3.23195]
[1738157318138,1.98751816,3094.6,3094.5,4.07163]
[1738157318297,1.98751816,3094.6,3094.5,1.60278289]
[1738157318497,1.98751816,3094.6,3094.5,1.59528289]
[1738157318714,1.98751816,3094.6,3094.5,0.03160589]
[1738157318890,1.98751816,3094.6,3094.3,0.0075]
[1738157319092,1.98751816,3094.6,3094.3,3.23923]
[1738157319314,1.98751816,3094.6,3094.4,3.2632292]
[1738157319514,1.98751816,3094.6,3094.4,6.4948092]
[1738157319728,1.98751816,3094.6,3094.5,3.89249228]
[1738157319915,1.98751816,3094.6,3094.5,0.66096228]
[1738157320241,1.98751816,3094.6,3094.5,0.03951981]
[1738157320427,5.21894816,3094.6,3094.5,0.03951981]
[1738157320622,1.98751816,3094.6,3094.2,0.0075]
[1738157320821,1.98751816,3094.6,3094.5,0.04701981]
[1738157321022,1.98751816,3094.6,3094.5,3.23903]
[1738157321197,1.98751816,3094.6,3094.5,4.68360136]
[1738157321536,1.98751816,3094.6,3094.5,5.23360136]
[1738157321700,1.98751816,3094.6,3094.5,11.16816866]
[1738157321900,1.98751816,3094.6,3094.5,11.17566866]
[1738157322101,1.98751816,3094.6,3094.5,8.24110136]
[1738157322497,5.21825816,3095.3,3094.7,0.0075]
[1738157322694,1.98751816,3095.3,3094.9,0.0075]
[1738157322919,3.23082,3095.2,3094.9,0.05448733]
[1738157323119,1.98751816,3095.3,3095.0,3.23101]
[1738157323323,1.98751816,3095.3,3094.9,0.0075]
[1738157323521,1.98751816,3095.3,3095.2,8.7958]
[1738157323803,1.98751816,3095.3,3095.2,10.0802928]
[1738157325424,1.98751816,3095.3,3095.2,10.8816928]
[1738157325740,1.98751816,3096.0,3095.9,3.23757]
[1738157325903,1.98751816,3096.0,3095.9,3.26986843]
[1738157326097,1.98751816,3096.0,3095.9,3.23757]
[1738157326424,1.98751816,3096.0,3095.9,4.29073259]
[1738157327715,1.98751816,3096.0,3095.9,1.05316259]
[1738157327915,1.98751816,3096.0,3095.6,3.23029]
[1738157328336,1.98751816,3096.0,3095.7,3.23772]
[1738157328545,1.98751816,3096.0,3095.9,3.23757]
[1738157328900,1.98751816,3096.0,3095.9,4.00267]
[1738157329432,4.02256,3096.8,3096.2,0.0075]
[1738157329665,0.7934,3096.8,3096.3,0.323726]
[1738157329870,3.25331924,3096.7,3096.0,0.0075]
[1738157330039,3.25331924,3096.7,3096.2,0.0075]
[1738157330447,3.22946,3096.5,3096.2,0.0075]
[1738157330680,3.2293,3096.7,3096.1,3.23735]
[1738157330842,3.2293,3096.7,3096.2,0.323735]
[1738157330843,3.25331924,3096.7,3096.2,0.323735]
[1738157331446,3.22963,3096.4,3096.2,0.323735]
[1738157331642,3.22952,3096.5,3095.9,3.23007]
[1738157332441,3.22952,3096.5,3095.7,6.23024]
[1738157332442,3.22952,3096.5,3096.0,0.0075]
[1738157332680,0.02401924,3096.4,3096.0,0.0075]
[1738157332889,3.22952,3096.5,3096.0,0.0075]
[1738157333184,3.22982,3096.2,3095.7,3.23026]
[1738157333391,0.8152,3096.3,3095.9,3.23007]
[1738157333781,0.8152,3096.3,3095.7,6.46046]
[1738157333980,4.04486,3096.3,3095.7,3.2302]
[1738157334282,4.04486,3096.3,3095.7,6.46042]
[1738157334446,3.22988,3096.1,3095.6,0.0075]
[1738157334647,3.22988,3096.1,3095.6,0.332048]
[1738157335073,3.22988,3096.1,3095.6,3.562388]
[1738157335257,3.2298,3096.2,3095.6,3.562388]
[1738157335680,3.25381924,3096.2,3095.6,3.562388]
[1738157335867,4.04486,3096.3,3095.7,3.23028]
[1738157336068,4.04486,3096.3,3095.8,0.3562328]
[1738157336281,3.22978,3096.2,3095.8,0.3562328]
[1738157336781,3.22989,3096.1,3095.6,0.0075]
[1738157336943,0.02401924,3096.0,3095.6,0.0075]
[1738157337160,3.23009,3095.9,3095.4,3.23059]
[1738157337359,3.23009,3095.9,3095.5,0.0075]
[1738157337575,0.02401924,3096.0,3095.5,0.0075]
[1738157337576,3.22989,3096.1,3095.5,3.23793]
[1738157337868,3.22989,3096.1,3095.5,3.960437]
[1738157338064,4.04491,3096.3,3095.7,3.23772]
[1738157338315,3.2299,3096.1,3095.7,0.0075]
[1738157338520,0.02401924,3096.0,3095.3,7.21783]
[1738157338661,6.45985,3096.1,3095.4,3.23799]
[1738157338867,6.45985,3096.1,3095.6,0.0075]
[1738157339069,3.22998,3096.0,3095.6,0.0075]
[1738157339590,3.2299,3096.1,3095.6,0.0075]
[1738157339790,6.45985,3096.1,3095.6,0.0075]
[1738157340201,3.2299,3096.1,3095.6,0.0075]
[1738157340409,3.25398924,3096.0,3095.6,0.0075]
[1738157340570,3.22997,3096.0,3095.6,0.0075]
[1738157340768,3.25398924,3096.0,3095.6,0.0075]
[1738157341483,3.23011,3095.9,3095.3,0.7565]
[1738157341681,3.25425924,3095.8,3095.3,0.7565]
[1738157342177,0.02401924,3095.8,3095.4,0.0075]
[1738157342378,0.7993,3095.7,3094.3,2.0]
[1738157342679,3.23077,3095.3,3094.7,3.23127]
[1738157342881,3.23109,3095.0,3094.4,4.0329]
[1738157343091,3.23128,3094.8,3094.4,1.727768]
[1738157343268,0.02401924,3095.0,3094.3,3.23171]
[1738157343468,3.23119,3094.9,3094.4,0.0075]
[1738157343702,3.23119,3094.9,3094.4,3.23907]
[1738157344366,3.23119,3094.9,3094.2,3.23177]
[1738157344570,3.23119,3094.9,3094.1,3.3573]
[1738157344823,3.23093,3095.1,3094.5,3.23153]
[1738157345018,3.23077,3095.3,3094.7,3.23131]
[1738157345357,3.23077,3095.3,3094.8,4.01927]
[1738157345551,6.46157,3095.3,3094.8,0.7881]
[1738157345758,6.46157,3095.3,3094.7,3.23131]
[1738157345759,0.02401924,3095.2,3094.5,0.7881]
[1738157345920,0.02401924,3095.2,3094.2,4.02704]
[1738157345921,3.23134,3094.7,3094.2,4.02704]
[1738157346120,3.23134,3094.7,3094.2,5.008848]
[1738157346356,3.23145,3094.6,3094.3,0.0075]
[1738157346514,0.81151924,3094.8,3094.1,2.559]
[1738157346515,3.23174,3094.4,3094.1,2.559]
[1738157346722,0.02401924,3094.3,3093.8,3.2322]
[1738157347143,3.23167,3094.4,3093.9,3.23965]
[1738157347354,3.23167,3094.4,3093.9,0.0075]
[1738157347947,3.23149,3094.6,3093.9,0.0075]
[1738157348260,4.01876,3094.8,3094.2,4.02238]
[1738157348865,0.7915,3095.1,3094.3,0.03981535]
[1738157349182,3.23079,3095.3,3094.3,0.03981535]
[1738157349329,3.23079,3095.3,3094.8,3.23121]
[1738157349970,0.7915,3095.4,3094.8,4.00701]
[1738157350267,0.7915,3095.4,3094.9,0.0075]
[1738157350458,0.7915,3095.4,3094.9,3.23856]
[1738157350653,0.7915,3095.4,3094.9,0.0075]
[1738157350869,3.2307,3095.3,3094.9,0.0075]
[1738157351043,0.81551924,3095.4,3094.9,3.23861]
[1738157351249,0.7915,3095.4,3094.9,0.0075]
[1738157351451,4.02216,3095.4,3094.9,0.0075]
[1738157352035,0.7915,3095.4,3094.9,0.0075]
[1738157352274,4.04616924,3095.4,3094.9,0.0075]
[1738157352477,4.02215,3095.4,3094.9,3.23861]
[1738157352637,4.02215,3095.4,3094.8,0.7758]
[1738157352638,0.81551924,3095.4,3094.8,0.7758]
[1738157352975,3.23085,3095.2,3094.7,3.23132]
[1738157353172,3.23085,3095.2,3094.7,3.95571]
[1738157354744,4.02211,3095.4,3094.7,0.72439]
[1738157354944,4.02211,3095.4,3094.8,3.23122]
[1738157354945,3.23073,3095.3,3094.8,3.23122]
[1738157355479,0.02401924,3095.3,3094.7,0.72439]
[1738157355650,0.02401924,3095.3,3094.7,3.95571]
[1738157355651,3.23083,3095.2,3094.7,3.95571]
[1738157355853,3.23105,3095.0,3094.7,0.72439]
[1738157356054,3.23117,3094.9,3094.5,0.0075]
[1738157356266,3.25529924,3094.8,3094.2,0.779]
[1738157356445,3.23128,3094.8,3094.3,3.23172]
[1738157356645,3.23128,3094.8,3094.3,3.632792]
[1738157356847,3.23108,3095.0,3094.3,0.401072]
[1738157357260,3.23126,3094.8,3094.3,3.632802]
[1738157358361,3.23126,3094.8,3094.3,0.401072]
[1738157358780,3.23172,3094.4,3094.0,0.0075]
[1738157359146,3.23172,3094.4,3094.0,0.06037537]
[1738157359764,3.23178,3094.3,3094.0,0.05287537]
[1738157360168,3.23178,3094.3,3094.0,0.03897099]
[1738157360785,3.23154,3094.5,3094.0,0.03897099]
[1738157361262,4.02738,3094.7,3094.1,0.0075]
[1738157361263,0.796,3094.7,3094.1,0.0075]
[1738157361459,3.2316,3094.5,3094.1,0.03908096]
[1738157361689,0.02401924,3094.4,3093.9,3.993]
[1738157361874,3.23159,3094.5,3094.2,0.03948737]
[1738157362072,3.23159,3094.5,3094.0,3.23204]
[1738157362274,3.2314,3094.7,3094.3,0.03941951]
[1738157362584,3.2313,3094.8,3094.4,0.03935166]
[1738157363049,3.2313,3094.8,3094.2,3.23175]
[1738157363473,3.25537924,3094.7,3094.0,3.954524]
[1738157363792,3.23164,3094.4,3094.1,0.03955524]
[1738157364173,3.23164,3094.4,3093.9,3.99304]
[1738157364375,3.23164,3094.4,3094.0,0.03954749]
[1738157364784,3.23195,3094.1,3094.0,0.03954749]
[1738157365301,3.23195,3094.1,3093.5,3.24004]
[1738157365518,3.23185,3094.2,3094.0,0.03625187]
[1738157365666,3.23185,3094.2,3093.6,3.956921]
[1738157365867,3.23185,3094.2,3094.1,0.03618966]
[1738157366056,3.23185,3094.2,3093.6,3.956921]
[1738157366374,3.23197,3094.1,3093.6,3.956921]
[1738157368101,0.02401924,3094.0,3093.6,3.956921]
[1738157368602,1.46809934,3094.4,3093.7,3.23228]
[1738157368603,0.8242,3094.4,3093.7,3.23228]
[1738157368780,4.05592,3094.4,3093.8,3.2322]
[1738157368965,4.05592,3094.4,3093.9,3.23215]
[1738157369300,3.23176,3094.3,3093.8,3.23221]
[1738157369710,3.23176,3094.3,3093.7,3.23228]
[1738157369893,3.25592924,3094.2,3093.5,3.23253]
[1738157370202,3.23212,3094.0,3093.5,3.23253]
[1738157370762,0.8242,3094.4,3093.7,0.0075]
[1738157371100,4.05789,3094.7,3094.2,3.23185]
[1738157372077,4.00904,3095.1,3094.4,3.23158]
[1738157372279,0.7781,3095.4,3094.8,3.2312]
[1738157372504,3.23045,3095.6,3094.8,3.23116]
[1738157372999,3.23057,3095.5,3094.8,3.23112]
[1738157373191,3.23057,3095.5,3094.8,3.63784294]
[1738157373791,3.23057,3095.5,3094.9,3.2311]
[1738157373792,3.2306,3095.4,3094.9,3.2311]
[1738157375177,3.23045,3095.6,3095.0,3.23099]
[1738157375513,6.46094,3095.6,3095.0,3.23099]
[1738157375706,0.7781,3095.7,3095.0,0.0075]
[1738157375911,0.7781,3095.7,3095.1,3.23091]
[1738157376108,0.7781,3095.7,3095.1,0.03570007]
[1738157376109,3.23051,3095.5,3095.1,0.03570007]
[1738157377197,4.00838,3095.7,3095.1,0.03570007]
[1738157377198,0.02401924,3095.4,3095.1,0.03570007]
[1738157377398,4.0393,3095.2,3095.1,0.03570007]
[1738157377607,4.06331924,3095.2,3094.1,0.7632]
[1738157377811,6.46282,3094.7,3094.2,0.0075]
[1738157377993,3.2314,3094.7,3094.2,0.04341329]
[1738157379909,3.23158,3094.5,3094.2,0.03591329]
[1738157380320,3.23158,3094.5,3094.1,0.7632]
[1738157380525,3.23158,3094.5,3094.3,0.03585109]
[1738157380732,3.9815,3094.9,3094.2,0.03591329]
[1738157381030,3.9815,3094.9,3094.1,0.79551741]
[1738157381031,3.23145,3094.6,3094.3,0.03585109]
[1738157381171,0.02401924,3094.8,3094.3,0.03585109]
[1738157381377,3.23142,3094.7,3094.2,0.0075]
[1738157381627,0.02401924,3094.6,3094.3,0.03585109]
[1738157381822,3.23164,3094.4,3094.3,0.03585109]
[1738157382029,3.23152,3094.6,3094.0,3.23205]
[1738157382173,0.02401924,3094.5,3094.3,0.03585109]
[1738157382515,3.25560924,3094.5,3094.1,0.0075]
[1738157382719,3.23159,3094.5,3094.4,0.03578889]
[1738157382893,3.23159,3094.5,3094.1,0.0075]
[1738157383093,3.23159,3094.5,3094.4,0.03578889]
[1738157383619,3.23159,3094.5,3094.1,0.0075]
[1738157383791,3.23159,3094.5,3094.4,0.03578889]
[1738157383992,3.23159,3094.5,3094.1,0.0075]
[1738157384188,3.23159,3094.5,3094.2,0.03591329]
[1738157384395,3.25571924,3094.4,3093.8,7.266]
[1738157384607,3.2317,3094.4,3093.9,0.03609993]
[1738157384987,3.2317,3094.4,3093.9,3.26818993]
[1738157385324,3.2315,3094.6,3094.0,3.23203]
[1738157385621,3.23161,3094.5,3094.1,0.03632198]
[1738157386218,3.23115,3094.9,3094.4,3.23906]
[1738157386414,0.02401924,3094.8,3094.4,0.0075]
[1738157386605,3.23131,3094.8,3094.5,0.03609207]
[1738157386808,0.02401924,3094.8,3094.5,0.03609207]
[1738157387009,3.23115,3094.9,3094.5,0.03609207]
[1738157388383,3.25532924,3094.8,3094.5,0.03609207]
[1738157388693,3.2315,3094.6,3094.0,4.01608]
[1738157388897,3.25551924,3094.6,3094.1,0.401608]
[1738157389096,4.06641924,3094.6,3094.1,0.401608]
[1738157389500,3.23168,3094.4,3094.0,0.7766]
[1738157389779,4.04236,3094.6,3093.9,3.0]
[1738157389935,3.23156,3094.5,3094.0,3.23204]
[1738157390290,3.23153,3094.5,3094.0,3.23204]
[1738157390826,3.23153,3094.5,3094.0,3.23198]
[1738157390994,3.23153,3094.5,3094.1,0.6628426]
[1738157391200,3.23137,3094.7,3094.1,0.6628426]
[1738157391909,3.23137,3094.7,3094.2,3.23179]
[1738157392435,3.23123,3094.8,3094.3,0.81020887]
[1738157392636,3.23135,3094.7,3094.3,1.27672856]
[1738157394227,3.23135,3094.7,3094.3,0.81020887]
[1738157395013,3.25550924,3094.6,3094.3,0.81020887]
[1738157395213,0.02401924,3094.6,3094.3,0.03950887]
[1738157395466,3.23135,3094.7,3094.1,3.2319]
[1738157395631,3.23135,3094.7,3094.4,0.03924166]
[1738157395812,3.23135,3094.7,3094.1,3.2319]
[1738157396013,3.23135,3094.7,3094.2,0.03937738]
[1738157396242,3.23135,3094.7,3094.2,3.23185]
[1738157396446,3.23136,3094.7,3094.2,3.23179]
[1738157396659,3.23136,3094.7,3094.3,0.03930952]
[1738157396856,3.25545924,3094.6,3094.3,0.03930952]
[1738157397081,3.25545924,3094.6,3094.2,0.647129]
[1738157397218,0.02401924,3094.6,3094.4,0.03924166]
[1738157397419,0.02401924,3094.6,3094.2,0.647129]
[1738157397613,0.02401924,3094.6,3094.3,0.03934389]
[1738157397814,3.23136,3094.7,3094.3,0.03934389]
[1738157398015,3.23136,3094.7,3094.2,0.647129]
[1738157398215,3.23136,3094.7,3094.3,0.42799479]
[1738157398716,0.02401924,3094.6,3094.3,0.42799479]
[1738157398941,3.23136,3094.7,3094.3,0.42799479]
[1738157399141,3.23136,3094.7,3094.3,0.03934389]
[1738157399351,0.02401924,3094.6,3094.3,0.03934389]
[1738157399555,0.02401924,3094.6,3094.2,3.23184]
[1738157399779,0.02401924,3094.6,3094.4,0.03927603]
[1738157399917,0.02401924,3094.6,3094.3,0.03934389]
[1738157400266,3.2316,3094.5,3094.0,3.23205]
[1738157400424,3.2316,3094.5,3094.0,4.334454]
[1738157400751,3.23106,3095.0,3093.6,2.94146198]
[1738157400752,7.24152924,3094.4,3093.8,3.95885]
[1738157400914,3.2315,3094.6,3094.1,3.23195]
[1738157401116,3.23153,3094.6,3094.2,0.764]
[1738157401314,3.23175,3094.3,3093.8,4.72286]
[1738157401568,0.02401924,3094.2,3093.8,4.72286]
[1738157401867,3.23186,3094.2,3093.8,0.764]
[1738157402078,0.02401924,3094.1,3093.5,0.8309]
[1738157402241,0.772,3094.0,3092.9,0.8309]
[1738157402568,3.23297,3093.2,3092.7,3.23335]
[1738157402872,3.25682924,3093.3,3092.7,6.46669]
[1738157403166,3.23232,3093.8,3093.0,3.23304]
[1738157403167,3.23249,3093.6,3093.0,3.23304]
[1738157403955,3.23249,3093.6,3093.1,3.23296]
[1738157404124,4.0475,3093.8,3093.2,0.759]
[1738157404318,4.0475,3093.8,3093.2,3.99188]
[1738157404525,3.23248,3093.6,3093.2,0.759]
[1738157404934,3.25659924,3093.5,3092.9,4.03103]